Workbook

Sheet Лист1
A1: Школа | F1: Утвердил: | G1: должность
A2: Типовое примерное меню приготавливаемых блюд | G2: фамилия
A3: Возрастная категория | E3: 7-11 лет | G3: дата
A5: Неделя | B5: День недели | C5: Прием пищи | D5: Раздел меню | E5: Блюда | F5: Вес блюда, г | G5: Белки | H5: Жиры | I5: Углеводы | J5: Калорийность | K5: № рецептуры
A6: 1 | B6: 1 | C6: Завтрак | D6: гор.блюдо | E6: Суп молочный с ячневой крупой | F6: 250 | G6: 4.5 | H6: 4.4 | I6: 16.1 | J6: 154
D7: гор.напиток | E7: Какао с молоком | F7: 200 | G7: 3.3 | H7: 3.1 | I7: 13.6 | J7: 95
D8: хлеб | E8: Хлеб пшеничный | F8: 40 | G8: 3.16 | H8: 0.4 | I8: 19.3 | J8: 98.84
D9: Закуска | E9: Бутерброд с маслом и сыром | F9: 60 | G9: 8.6 | H9: 12.2 | I9: 24.9 | J9: 250.3
D12: итого | F12: =SUM(F6:F11) -> 550 | G12: =SUM(G6:G11) -> 19.56 | H12: =SUM(H6:H11) -> 20.1 | I12: =SUM(I6:I11) -> 73.9 | J12: =SUM(J6:J11) -> 598.14
A13: =A6 -> 1 | B13: =B6 -> 1 | C13: Завтрак 2 | D13: фрукты | E13: Свежие фрукты(мандарин) | F13: 120 | G13: 1 | H13: 2.6 | I13: 9.75 | J13: 49.4
D14: хлебо-бул.изд. | E14: Баранки | F14: 50 | G14: 5.2 | H14: 0.7 | I14: 32.1 | J14: 155.5
D15: напиток | E15: фруктовый сок | F15: 200 | G15: 0 | H15: 0 | I15: 22 | J15: 90
D16: итого | F16: =SUM(F13:F15) -> 370 | G16: =SUM(G13:G15) -> 6.2 | H16: =SUM(H13:H15) -> 3.3 | I16: =SUM(I13:I15) -> 63.85 | J16: =SUM(J13:J15) -> 294.9
A17: =A6 -> 1 | B17: =B6 -> 1 | C17: Обед | D17: закуска | E17: Сельдь с луком | F17: 35 | G17: 3.7 | H17: 8.6 | I17: 1.1 | J17: 98
D18: 1 блюдо | E18: Борщ с капустой и картофелем | F18: 250 | G18: 2 | H18: 6.2 | I18: 12.9 | J18: 119
D19: 2 блюдо | E19: Куры отварные | F19: 90 | G19: 23.5 | H19: 22.2 | I19: 0.3 | J19: 294
D20: гарнир | E20: Вермишель отварная с овощами | F20: 180 | G20: 5.2 | H20: 7.6 | I20: 28.1 | J20: 208
D21: напиток | E21: Компот из кураги и чернослива | F21: 200 | G21: 1.2 | H21: 0.1 | I21: 29.5 | J21: 127
D22: хлеб бел. | E22: Хлеб пшеничный | F22: 40 | G22: 6.65 | H22: 0.86 | I22: 41.06 | J22: 96.8
D23: хлеб черн. | E23: Хлеб ржаной | F23: 40 | G23: 2.64 | H23: 0.48 | I23: 13.36 | J23: 77.2
D26: итого | F26: =SUM(F17:F25) -> 835 | G26: =SUM(G17:G25) -> 44.89 | H26: =SUM(H17:H25) -> 46.04 | I26: =SUM(I17:I25) -> 126.32 | J26: =SUM(J17:J25) -> 1020
A27: =A6 -> 1 | B27: =B6 -> 1 | C27: Полдник | D27: Сладкое | E27: Пудинг из творога со сгущенным молоком | F27: 180 | G27: 24.8 | H27: 15.1 | I27: 39.6 | J27: 397
D28: Кисломол.напиток | E28: Катык | F28: 150 | G28: 4.33 | H28: 4.7 | I28: 13.2 | J28: 113.5
D31: итого | F31: =SUM(F27:F30) -> 330 | G31: =SUM(G27:G30) -> 29.13 | H31: =SUM(H27:H30) -> 19.8 | I31: =SUM(I27:I30) -> 52.8 | J31: =SUM(J27:J30) -> 510.5
A32: =A6 -> 1 | B32: =B6 -> 1 | C32: Ужин | D32: мясное изделие | E32: Бефстроганов из отварного мяса | F32: 100 | G32: 16.2 | H32: 15.1 | I32: 2.1 | J32: 210
D33: гарнир | E33: Каша рисовая молочная | F33: 180 | G33: 5.2 | H33: 7.2 | I33: 35.2 | J33: 229
D34: напиток | E34: Чай с молоком и с сахаром | F34: 200 | G34: 1.6 | H34: 1.5 | I34: 11.3 | J34: 62
D35: хлеб | E35: Хлеб пшеничный | F35: 40 | G35: 6.65 | H35: 0.86 | I35: 41.06 | J35: 96.8
D36: салат | E36: салат из белокочанной капусты | F36: 80 | G36: 1.6 | H36: 4 | I36: 8.3 | J36: 78.7
D37: хлеб | E37: Хлеб ржаной | F37: 40 | G37: 2.64 | H37: 0.48 | I37: 13.36 | J37: 77.2
D38: итого | F38: =SUM(F32:F37) -> 640 | G38: =SUM(G32:G37) -> 33.89 | H38: =SUM(H32:H37) -> 29.14 | I38: =SUM(I32:I37) -> 111.32 | J38: =SUM(J32:J37) -> 753.7
A39: =A6 -> 1 | B39: =B6 -> 1 | C39: Ужин 2 | D39: кисломол.
D40: булочное
D41: напиток
D42: фрукты
D45: итого | F45: =SUM(F39:F44) -> 0 | G45: =SUM(G39:G44) -> 0 | H45: =SUM(H39:H44) -> 0 | I45: =SUM(I39:I44) -> 0 | J45: =SUM(J39:J44) -> 0
A46: =A6 -> 1 | B46: =B6 -> 1 | C46: Итого за день: | F46: =F12+F16+F26+F31+F38+F45 -> 2725 | G46: =G12+G16+G26+G31+G38+G45 -> 133.67 | H46: =H12+H16+H26+H31+H38+H45 -> 118.38 | I46: =I12+I16+I26+I31+I38+I45 -> 428.19 | J46: =J12+J16+J26+J31+J38+J45 -> 3177.24
A47: 1 | B47: 2 | C47: Завтрак | D47: гор.блюдо | E47: Суп молочный с гречневой крупой | F47: 250 | G47: 21.25 | H47: 11.5 | I47: 72 | J47: 505
D48: закуска | E48: Бутерброд с маслом и сыром | F48: 60 | G48: 8.6 | H48: 12.2 | I48: 14.5 | J48: 250.3
D49: гор.напиток | E49: Кофейный напиток на молоке | F49: 200 | G49: 3 | H49: 2.8 | I49: 16.6 | J49: 101
D50: хлеб | E50: Хлеб пшеничный | F50: 40 | G50: 3.16 | H50: 0.84 | I50: 19.3 | J50: 98.84
D54: итого | F54: =SUM(F47:F53) -> 550 | G54: =SUM(G47:G53) -> 36.01 | H54: =SUM(H47:H53) -> 27.34 | I54: =SUM(I47:I53) -> 122.4 | J54: =SUM(J47:J53) -> 955.14
A55: =A47 -> 1 | B55: =B47 -> 2 | C55: Завтрак 2 | D55: хлебо-бул.изд. | E55: Вафли | F55: 50 | G55: 2.1 | H55: 14.3 | I55: 31.3 | J55: 261.05
D56: напиток | E56: фруктовый сок | F56: 200 | G56: 0 | H56: 0 | I56: 22 | J56: 90
D58: итого | F58: =SUM(F55:F57) -> 250 | G58: =SUM(G55:G57) -> 2.1 | H58: =SUM(H55:H57) -> 14.3 | I58: =SUM(I55:I57) -> 53.3 | J58: =SUM(J55:J57) -> 351.05
A59: =A47 -> 1 | B59: =B47 -> 2 | C59: Обед | D59: закуска | E59: салат из свеклы с растительным маслом | F59: 80 | G59: 1.07 | H59: 6.5 | I59: 5.07 | J59: 86.67
D60: 1 блюдо | E60: щи из свежей капусты с картофелем | F60: 250 | G60: 2 | H60: 6.2 | I60: 8.8 | J60: 103
D61: 2 блюдо | E61: рыба припущенная | F61: 90 | G61: 15.9 | H61: 0.9 | I61: 0.5 | J61: 74
D62: гарнир | E62: картофельное пюре | F62: 180 | G62: 3.69 | H62: 5.76 | I62: 21.6 | J62: 169.2
D63: напиток | E63: компот из смеси сухофруктов | F63: 200 | G63: 0.5 | H63: 0.1 | I63: 0 | J63: 123
D64: хлеб бел. | E64: хлеб пшеничный | F64: 40 | G64: 6.65 | H64: 0.86 | I64: 41.06 | J64: 96.8
D65: хлеб черн. | E65: хлеб ржаной | F65: 40 | G65: 2.64 | H65: 0.48 | I65: 13.36 | J65: 77.2
D66: фрукт | E66: Свежие фрукты(Апельсин) | F66: 150 | G66: 2.7 | H66: 0.75 | I66: 42 | J66: 73
D68: итого | F68: =SUM(F59:F67) -> 1030 | G68: =SUM(G59:G67) -> 35.15 | H68: =SUM(H59:H67) -> 21.55 | I68: =SUM(I59:I67) -> 132.39 | J68: =SUM(J59:J67) -> 802.87
A69: =A47 -> 1 | B69: =B47 -> 2 | C69: Полдник | D69: булочное | E69: булочка"веснушка" | F69: 50 | G69: 3.9 | H69: 2.8 | I69: 26.8 | J69: 152
D70: напиток | E70: молоко кипяченое | F70: 200 | G70: 5.7 | H70: 5.9 | I70: 9 | J70: 111
D71: фрукт | E71: Свежие фрукты(яблоко) | F71: 150 | G71: 0 | H71: 0.57 | I71: 13.3 | J71: 70.5
D73: итого | F73: =SUM(F69:F72) -> 400 | G73: =SUM(G69:G72) -> 9.6 | H73: =SUM(H69:H72) -> 9.27 | I73: =SUM(I69:I72) -> 49.1 | J73: =SUM(J69:J72) -> 333.5
A74: =A47 -> 1 | B74: =B47 -> 2 | C74: Ужин | D74: закуска | E74: салат из свежих огурцов | F74: 80 | G74: 0.53 | H74: 3.87 | I74: 2.4 | J74: 48
D75: гарнир | E75: плов из говядины | F75: 250 | G75: 26.1 | H75: 25.2 | I75: 42.2 | J75: 509
D76: напиток | E76: чай с лимоном и сахаром | F76: 200 | G76: 0.2 | H76: 0 | I76: 9.3 | J76: 38
D77: хлеб | E77: хлеб пшеничный | F77: 40 | G77: 6.65 | H77: 0.86 | I77: 41.06 | J77: 96.8
D78: хлеб | E78: хлеб ржаной | F78: 40 | G78: 2.64 | H78: 0.48 | I78: 13.36 | J78: 77.2
D80: итого | F80: =SUM(F74:F79) -> 610 | G80: =SUM(G74:G79) -> 36.12 | H80: =SUM(H74:H79) -> 30.41 | I80: =SUM(I74:I79) -> 108.32 | J80: =SUM(J74:J79) -> 769
A81: =A47 -> 1 | B81: =B47 -> 2 | C81: Ужин 2 | D81: кисломол.
D82: булочное
D83: напиток
D84: фрукты
D87: итого | F87: =SUM(F81:F86) -> 0 | G87: 0 | H87: 0 | I87: 0 | J87: 0
A88: =A47 -> 1 | B88: =B47 -> 2 | C88: Итого за день: | F88: =F54+F58+F68+F73+F80+F87 -> 2840 | G88: =G54+G58+G68+G73+G80+G87 -> 118.98 | H88: =H54+H58+H68+H73+H80+H87 -> 102.87 | I88: =I54+I58+I68+I73+I80+I87 -> 465.51 | J88: =J54+J58+J68+J73+J80+J87 -> 3211.56
A89: 1 | B89: 3 | C89: Завтрак | D89: гор.блюдо | E89: Каша манная молочная жидкая | F89: 250 | G89: 7.6 | H89: 10.5 | I89: 37.9 | J89: 277.78
D90: закуска | E90: бутерброд с масло и сыром | F90: 60 | G90: 8.6 | H90: 12.2 | I90: 14.5 | J90: 250.3
D91: гор.напиток | E91: Какао с молоком | F91: 200 | G91: 3.3 | H91: 3.1 | I91: 13.6 | J91: 95
D92: хлеб | E92: хлеб пшеничный | F92: 40 | G92: 6.65 | H92: 0.86 | I92: 41.06 | J92: 96.8
D96: итого | F96: =SUM(F89:F95) -> 550 | G96: =SUM(G89:G95) -> 26.15 | H96: =SUM(H89:H95) -> 26.66 | I96: =SUM(I89:I95) -> 107.06 | J96: =SUM(J89:J95) -> 719.88
A97: =A89 -> 1 | B97: =B89 -> 3 | C97: Завтрак 2 | D97: напиток | E97: фруктовый сок | F97: 200 | G97: 0 | H97: 0 | I97: 22 | J97: 90
D98: хлебо-бул.изд. | E98: пироги | F98: 50 | G98: 5 | H98: 1.6 | I98: 27.7 | J98: 170
D100: итого | F100: =SUM(F97:F99) -> 250 | G100: =SUM(G97:G99) -> 5 | H100: =SUM(H97:H99) -> 1.6 | I100: =SUM(I97:I99) -> 49.7 | J100: =SUM(J97:J99) -> 260
A101: =A89 -> 1 | B101: =B89 -> 3 | C101: Обед | D101: закуска | E101: винегрет | F101: 80 | G101: 1.07 | H101: 2 | I101: 6.13 | J101: 50.7
D102: 1 блюдо | E102: суп с бобовыми | F102: 250 | G102: 12 | H102: 10.4 | I102: 12.4 | J102: 196
D103: 2 блюдо | E103: голубцы ленивые с мясом | F103: 150 | G103: 9 | H103: 7.8 | I103: 9.3 | J103: 147
D104: фрукт | E104: Свежие фрукты(банан) | F104: 130 | G104: 1.4 | H104: 0.4 | I104: 26.3 | J104: 115.7
D105: напиток | E105: компот из кураги | F105: 200 | G105: 1.2 | H105: 0.1 | I105: 29.5 | J105: 127
D106: хлеб бел. | E106: хлеб пшеничный | F106: 40 | G106: 6.65 | H106: 0.86 | I106: 41.06 | J106: 96.8
D107: хлеб черн. | E107: хлебржной | F107: 40 | G107: 2.64 | H107: 0.48 | I107: 13.36 | J107: 77.2
D110: итого | F110: =SUM(F101:F109) -> 890 | G110: =SUM(G101:G109) -> 33.96 | H110: =SUM(H101:H109) -> 22.04 | I110: =SUM(I101:I109) -> 138.05 | J110: =SUM(J101:J109) -> 810.4
A111: =A89 -> 1 | B111: =B89 -> 3 | C111: Полдник | D111: сладкое | E111: запеканка из творога с повидлом | F111: 150 | G111: 27.7 | H111: 20.3 | I111: 35.5 | J111: 438
D112: кисломол.напиток | E112: катык | F112: 150 | G112: 4.3 | H112: 4.7 | I112: 13.2 | J112: 113.5
D115: итого | F115: =SUM(F111:F114) -> 300 | G115: =SUM(G111:G114) -> 32 | H115: =SUM(H111:H114) -> 25 | I115: =SUM(I111:I114) -> 48.7 | J115: =SUM(J111:J114) -> 551.5
A116: =A89 -> 1 | B116: =B89 -> 3 | C116: Ужин | D116: 2 блюдо | E116: Катлеты"Здоровье" | F116: 100 | G116: 15.2 | H116: 13.2 | I116: 8.8 | J116: 218
D117: гарнир | E117: картофель в молоке | F117: 180 | G117: 3.9 | H117: 5.7 | I117: 21.5 | J117: 158
D118: напиток | E118: чай с молоком и с сахаром | F118: 200 | G118: 2.64 | H118: 0.48 | I118: 13.36 | J118: 62
D119: хлеб | E119: хлеб пшеничный | F119: 40 | G119: 6.65 | H119: 0.86 | I119: 41.06 | J119: 96.8
D120: хлеб | E120: хлеб ржаной | F120: 40 | G120: 2.64 | H120: 0.48 | I120: 13.36 | J120: 77.2
D121: закуска | E121: салат из свежих огурцов и помидор | F121: 80 | G121: 0.7 | H121: 4 | I121: 3.2 | J121: 26.67
D122: итого | F122: =SUM(F116:F121) -> 640 | G122: =SUM(G116:G121) -> 31.73 | H122: =SUM(H116:H121) -> 24.72 | I122: =SUM(I116:I121) -> 101.28 | J122: =SUM(J116:J121) -> 638.67
A123: =A89 -> 1 | B123: =B89 -> 3 | C123: Ужин 2 | D123: кисломол.
D124: булочное
D125: напиток
D126: фрукты
D129: итого | F129: =SUM(F123:F128) -> 0 | G129: 0 | H129: 0 | I129: 0 | J129: 0
A130: =A89 -> 1 | B130: =B89 -> 3 | C130: Итого за день: | F130: =F96+F100+F110+F115+F122+F129 -> 2630 | G130: =G96+G100+G110+G115+G122+G129 -> 128.84 | H130: =H96+H100+H110+H115+H122+H129 -> 100.02 | I130: =I96+I100+I110+I115+I122+I129 -> 444.79 | J130: =J96+J100+J110+J115+J122+J129 -> 2980.45
A131: 1 | B131: 4 | C131: Завтрак | D131: гор.блюдо | E131: Омлет натуральный | F131: 250 | G131: 21.4 | H131: 31.7 | I131: 3.8 | J131: 385.7
D132: закуска | E132: бутерброд с маслом | F132: 50 | G132: 2.7 | H132: 14.2 | I132: 16.2 | J132: 206.7
D133: гор.напиток | E133: кофейный напиток на молоке | F133: 200 | G133: 3 | H133: 2.8 | I133: 16.6 | J133: 101
D134: хлеб | E134: хлеб пшеничный | F134: 40 | G134: 6.65 | H134: 0.86 | I134: 41.06 | J134: 96.8
D138: итого | F138: =SUM(F131:F137) -> 540 | G138: =SUM(G131:G137) -> 33.75 | H138: =SUM(H131:H137) -> 49.56 | I138: =SUM(I131:I137) -> 77.66 | J138: =SUM(J131:J137) -> 790.2
A139: =A131 -> 1 | B139: =B131 -> 4 | C139: Завтрак 2 | D139: фрукты | E139: Свежие фрукты(Апельсин) | F139: 150 | G139: 2.7 | H139: 2.75 | I139: 42 | J139: 73
D140: хлебо-бул.изд. | E140: рогалики | F140: 50 | G140: 2.7 | H140: 10.1 | I140: 10.4 | J140: 143
D141: напиток | E141: сок фруктовый | F141: 200 | G141: 0 | H141: 0 | I141: 22 | J141: 90
D142: итого | F142: =SUM(F139:F141) -> 400 | G142: =SUM(G139:G141) -> 5.4 | H142: =SUM(H139:H141) -> 12.85 | I142: =SUM(I139:I141) -> 74.4 | J142: =SUM(J139:J141) -> 306
A143: =A131 -> 1 | B143: =B131 -> 4 | C143: Обед | D143: закуска | E143: салат"студенческий" | F143: 80 | G143: 2.93 | H143: 9.33 | I143: 6.13 | J143: 124
D144: 1 блюдо | E144: рассольник ленинградский | F144: 250 | G144: 2.4 | H144: 5.7 | I144: 15.7 | J144: 130
D145: 2 блюдо | E145: котлеты рыбные | F145: 90 | G145: 14.28 | H145: 9.56 | I145: 13.73 | J145: 199.2
D146: гарнир | E146: картофельное пюре | F146: 180 | G146: 3.69 | H146: 5.76 | I146: 21.6 | J146: 169.2
D147: напиток | E147: компот из смеси сухофруктов | F147: 200 | G147: 0.5 | H147: 0.1 | I147: 0 | J147: 123
D148: хлеб бел. | E148: хлеб пшеничный | F148: 40 | G148: 6.65 | H148: 0.86 | I148: 41.06 | J148: 96.8
D149: хлеб черн. | E149: хлеб ржаной | F149: 40 | G149: 2.64 | H149: 0.48 | I149: 13.36 | J149: 77.2
D152: итого | F152: =SUM(F143:F151) -> 880 | G152: =SUM(G143:G151) -> 33.09 | H152: =SUM(H143:H151) -> 31.79 | I152: =SUM(I143:I151) -> 111.58 | J152: =SUM(J143:J151) -> 919.4
A153: =A131 -> 1 | B153: =B131 -> 4 | C153: Полдник | D153: хлебо-бул.изд. | E153: булочка сдобная | F153: 100 | G153: 7.8 | H153: 8.5 | I153: 52.4 | J153: 322
D154: напиток | E154: напиток из плодов шиповника | F154: 200 | G154: 0.7 | H154: 0.3 | I154: 29 | J154: 127
D157: итого | F157: =SUM(F153:F156) -> 300 | G157: =SUM(G153:G156) -> 8.5 | H157: =SUM(H153:H156) -> 8.8 | I157: =SUM(I153:I156) -> 81.4 | J157: =SUM(J153:J156) -> 449
A158: =A131 -> 1 | B158: =B131 -> 4 | C158: Ужин | D158: гор.блюдо | E158: фрикадельки из кур | F158: 90 | G158: 13.8 | H158: 17 | I158: 7.7 | J158: 240
D159: гарнир | E159: каша"дружба" | F159: 180 | G159: 5.2 | H159: 7.5 | I159: 28.9 | J159: 206
D160: напиток | E160: чай с молоком и с сахаром | F160: 200 | G160: 1.6 | H160: 1.5 | I160: 11.3 | J160: 62
D161: хлеб | E161: хлеб пшеничный | F161: 40 | G161: 6.65 | H161: 0.86 | I161: 41.06 | J161: 96.8
D162: хлеб | E162: хлеб ржаной | F162: 40 | G162: 2.64 | H162: 0.48 | I162: 13.36 | J162: 77.2
D163: закуска | E163: салат из свеклы с яблоками | F163: 80 | G163: 0.67 | H163: 4 | I163: 5.87 | J163: 64
D164: итого | F164: =SUM(F158:F163) -> 630 | G164: =SUM(G158:G163) -> 30.56 | H164: =SUM(H158:H163) -> 31.34 | I164: =SUM(I158:I163) -> 108.19 | J164: =SUM(J158:J163) -> 746
A165: =A131 -> 1 | B165: =B131 -> 4 | C165: Ужин 2 | D165: кисломол.
D166: булочное
D167: напиток
D168: фрукты
D171: итого | F171: =SUM(F165:F170) -> 0 | G171: 0 | H171: 0 | I171: 0 | J171: 0
A172: =A131 -> 1 | B172: =B131 -> 4 | C172: Итого за день: | F172: =F138+F142+F152+F157+F164+F171 -> 2750 | G172: =G138+G142+G152+G157+G164+G171 -> 111.3 | H172: =H138+H142+H152+H157+H164+H171 -> 134.34 | I172: =I138+I142+I152+I157+I164+I171 -> 453.23 | J172: =J138+J142+J152+J157+J164+J171 -> 3210.6
A173: 1 | B173: 5 | C173: Завтрак | D173: гор.блюдо | E173: суп молочный с ячневой крупой | F173: 250 | G173: 5.5 | H173: 5.2 | I173: 20.5 | J173: 154
D174: закуска | E174: бутерброд с сыром и маслом | F174: 60 | G174: 8.6 | H174: 12.2 | I174: 24.9 | J174: 250.3
D175: гор.напиток | E175: какао с молоком | F175: 200 | G175: 3.3 | H175: 3.1 | I175: 13.6 | J175: 95
D176: хлеб | E176: хлеб пшеничный | F176: 40 | G176: 6.65 | H176: 0.86 | I176: 41.06 | J176: 96.8
D180: итого | F180: =SUM(F173:F179) -> 550 | G180: =SUM(G173:G179) -> 24.05 | H180: =SUM(H173:H179) -> 21.36 | I180: =SUM(I173:I179) -> 100.06 | J180: =SUM(J173:J179) -> 596.1
A181: =A173 -> 1 | B181: =B173 -> 5 | C181: Завтрак 2 | D181: фрукты | E181: Свежие фрукты(апельсин) | F181: 150 | G181: 2.7 | H181: 0.75 | I181: 42 | J181: 73
D182: напиток | E182: фруктовый сок | F182: 200 | G182: 0 | H182: 0 | I182: 22 | J182: 90
D183: хлебо-бул.изд. | E183: баранки | F183: 50 | G183: 4.2 | H183: 4 | I183: 30.2 | J183: 174
D184: итого | F184: =SUM(F181:F183) -> 400 | G184: =SUM(G181:G183) -> 6.9 | H184: =SUM(H181:H183) -> 4.75 | I184: =SUM(I181:I183) -> 94.2 | J184: =SUM(J181:J183) -> 337
A185: =A173 -> 1 | B185: =B173 -> 5 | C185: Обед | D185: закуска | E185: салат морковный | F185: 80 | G185: 0.93 | H185: 7.87 | I185: 7.06 | J185: 105.3
D186: 1 блюдо | E186: суп с макаронными изделиями | F186: 250 | G186: 5.5 | H186: 5 | I186: 20.2 | J186: 153
D187: 2 блюдо | E187: куры отварные | F187: 90 | G187: 23.5 | H187: 22.2 | I187: 0.3 | J187: 294
D188: гарнир | E188: картофель отварноц в молоке | F188: 180 | G188: 3.9 | H188: 5.7 | I188: 21.5 | J188: 158
D189: напиток | E189: витошка | F189: 200 | G189: 0 | H189: 0 | I189: 23.89 | J189: 92
D190: хлеб бел. | E190: хлеб пшеничный | F190: 40 | G190: 6.65 | H190: 0.86 | I190: 41.06 | J190: 96.8
D191: хлеб черн. | E191: хлеб ржаной | F191: 40 | G191: 2.64 | H191: 0.48 | I191: 13.36 | J191: 77.2
D194: итого | F194: =SUM(F185:F193) -> 880 | G194: =SUM(G185:G193) -> 43.12 | H194: =SUM(H185:H193) -> 42.11 | I194: =SUM(I185:I193) -> 127.37 | J194: =SUM(J185:J193) -> 976.3
A195: =A173 -> 1 | B195: =B173 -> 5 | C195: Полдник | D195: сладкое | E195: сырники из творога со сгущенным молоком | F195: 120 | G195: 23.7 | H195: 4.7 | I195: 27.9 | J195: 251.3
D196: напиток | E196: компот из свежих яблок | F196: 200 | G196: 0.2 | H196: 0.1 | I196: 17.2 | J196: 70
D199: итого | F199: =SUM(F195:F198) -> 320 | G199: =SUM(G195:G198) -> 23.9 | H199: =SUM(H195:H198) -> 4.8 | I199: =SUM(I195:I198) -> 45.1 | J199: =SUM(J195:J198) -> 321.3
A200: =A173 -> 1 | B200: =B173 -> 5 | C200: Ужин | D200: гор.блюдо | E200: тефтели из говядины | F200: 90 | G200: 12.2 | H200: 9.5 | I200: 10.3 | J200: 178.7
D201: гарнир | E201: каша пшенная | F201: 180 | G201: 6.7 | H201: 8.2 | I201: 30 | J201: 223
D202: напиток | E202: чай с молоком и с сахаром | F202: 200 | G202: 1.6 | H202: 1.5 | I202: 11.3 | J202: 62
D203: хлеб | E203: хлеб пшеничный | F203: 40 | G203: 6.65 | H203: 0.86 | I203: 41.06 | J203: 96.8
D204: хлеб | E204: хлеб ржаной | F204: 40 | G204: 2.64 | H204: 0.48 | I204: 13.36 | J204: 77.2
D205: закуска | E205: винегрет | F205: 80 | G205: 1.07 | H205: 2 | I205: 6.13 | J205: 50.7
D206: итого | F206: =SUM(F200:F205) -> 630 | G206: =SUM(G200:G205) -> 30.86 | H206: =SUM(H200:H205) -> 22.54 | I206: =SUM(I200:I205) -> 112.15 | J206: =SUM(J200:J205) -> 688.4
A207: =A173 -> 1 | B207: =B173 -> 5 | C207: Ужин 2 | D207: кисломол.
D208: булочное
D209: напиток
D210: фрукты
D213: итого | F213: =SUM(F207:F212) -> 0 | G213: 0 | H213: 0 | I213: 0 | J213: 0
A214: =A173 -> 1 | B214: =B173 -> 5 | C214: Итого за день: | F214: =F180+F184+F194+F199+F206+F213 -> 2780 | G214: =G180+G184+G194+G199+G206+G213 -> 128.83 | H214: =H180+H184+H194+H199+H206+H213 -> 95.56 | I214: =I180+I184+I194+I199+I206+I213 -> 478.88 | J214: =J180+J184+J194+J199+J206+J213 -> 2919.1
A215: 1 | B215: 6 | C215: Завтрак | D215: гор.блюдо | E215: суп молочный с пшеничной крупой | F215: 250 | G215: 5.5 | H215: 5.2 | I215: 20.5 | J215: 152
D216: закуска | E216: бутерброд с маслом | F216: 50 | G216: 2.7 | H216: 14.2 | I216: 16.2 | J216: 206.7
D217: гор.напиток | E217: кофейный напиток с молоком | F217: 200 | G217: 3 | H217: 2.8 | I217: 16.6 | J217: 101
D218: хлеб | E218: хлеб пшеничный | F218: 40 | G218: 6.65 | H218: 0.86 | I218: 41.06 | J218: 96.8
D219: закуска | E219: яйцо вареное | F219: 60 | G219: 7.2 | H219: 6.6 | I219: 0.3 | J219: 88.5
D222: итого | F222: =SUM(F215:F221) -> 600 | G222: =SUM(G215:G221) -> 25.05 | H222: =SUM(H215:H221) -> 29.66 | I222: =SUM(I215:I221) -> 94.66 | J222: =SUM(J215:J221) -> 645
A223: =A215 -> 1 | B223: =B215 -> 6 | C223: Завтрак 2 | D223: фрукты | E223: свежие фрукты(груша) | F223: 150 | G223: 2.7 | H223: 0.75 | I223: 42 | J223: 73
D224: хлебо-бул.изд. | E224: вафли | F224: 50 | G224: 2.1 | H224: 14.3 | I224: 31.3 | J224: 261.05
D225: напиток | E225: фруктовый сок | F225: 200 | G225: 0 | H225: 0 | I225: 22 | J225: 90
D226: итого | F226: =SUM(F223:F225) -> 400 | G226: =SUM(G223:G225) -> 4.8 | H226: =SUM(H223:H225) -> 15.05 | I226: =SUM(I223:I225) -> 95.3 | J226: =SUM(J223:J225) -> 424.05
A227: =A215 -> 1 | B227: =B215 -> 6 | C227: Обед | D227: закуска | E227: салат из моркови с изюмом | F227: 80 | G227: 1.2 | H227: 0.1 | I227: 11.6 | J227: 56
D228: 1 блюдо | E228: уха с крупой | F228: 250 | G228: 11.1 | H228: 3 | I228: 14.4 | J228: 134
D229: 2 блюдо | E229: овощи тушеные с мясом | F229: 245 | G229: 21.4 | H229: 25.7 | I229: 21.5 | J229: 409
D230: напиток | E230: компот из кураги и чернослива | F230: 200 | G230: 1.2 | H230: 0.1 | I230: 29.5 | J230: 127
D231: хлеб бел. | E231: хлеб пшеничный | F231: 40 | G231: 6.65 | H231: 0.86 | I231: 41.06 | J231: 96.8
D232: хлеб черн. | E232: хлеб ржаной | F232: 40 | G232: 2.64 | H232: 0.48 | I232: 13.36 | J232: 77.2
D235: итого | F235: =SUM(F227:F234) -> 855 | G235: =SUM(G227:G234) -> 44.19 | H235: =SUM(H227:H234) -> 30.24 | I235: =SUM(I227:I234) -> 131.42 | J235: =SUM(J227:J234) -> 900
A236: =A215 -> 1 | B236: =B215 -> 6 | C236: Полдник | D236: хлебо-бул.изд. | E236: ватрушка с творогом | F236: 50 | G236: 5.8 | H236: 3.4 | I236: 19.7 | J236: 136
D237: напиток | E237: напиток апельсиновый | F237: 200 | G237: 0.1 | H237: 0 | I237: 20.4 | J237: 79
D238: фрукт | E238: свежие фрукты(мандарин) | F238: 80 | G238: 0.6 | H238: 0.2 | I238: 6 | J238: 30.4
D240: итого | F240: =SUM(F236:F239) -> 330 | G240: =SUM(G236:G239) -> 6.5 | H240: =SUM(H236:H239) -> 3.6 | I240: =SUM(I236:I239) -> 46.1 | J240: =SUM(J236:J239) -> 245.4
A241: =A215 -> 1 | B241: =B215 -> 6 | C241: Ужин | D241: гор.блюдо | E241: Зразы "Школьные" | F241: 100 | G241: 13.8 | H241: 24.7 | I241: 12.6 | J241: 334
D242: гарнир | E242: каша молочная гречневая | F242: 150 | G242: 6.4 | H242: 3.5 | I242: 21.6 | J242: 151.5
D243: напиток | E243: чай с лимоном с сахаром | F243: 200 | G243: 0.2 | H243: 0 | I243: 9.3 | J243: 38
D244: хлеб | E244: хлеб пшеничный | F244: 40 | G244: 6.65 | H244: 0.86 | I244: 41.06 | J244: 96.8
D245: хлеб | E245: хлеб ржаной | F245: 40 | G245: 2.64 | H245: 0.48 | I245: 13.36 | J245: 77.2
D246: закуска | E246: салат"степной" | F246: 80 | G246: 1.33 | H246: 2.7 | I246: 6.5 | J246: 60
D247: итого | F247: =SUM(F241:F246) -> 610 | G247: =SUM(G241:G246) -> 31.02 | H247: =SUM(H241:H246) -> 32.24 | I247: =SUM(I241:I246) -> 104.42 | J247: =SUM(J241:J246) -> 757.5
A248: =A215 -> 1 | B248: =B215 -> 6 | C248: Ужин 2 | D248: кисломол.
D249: булочное
D250: напиток
D251: фрукты
... 264 more rows
